bitfinex/quotes_ETHUSD_20220202
["timestamp","ask_amount","ask_price","bid_price","bid_amount"]
[1643772918372,0.92010942,2786.1,2785.6,0.1794]
[1643772919173,0.40468824,2786.3,2785.6,1.4794]
[1643772920279,1.3899,2786.8,2785.6,1.4794]
[1643772920488,1.3899,2786.8,2785.7,3.69132999]
[1643772920686,3.95449997,2787.3,2785.8,0.515]
[1643772920687,0.1794,2787.2,2785.8,0.515]
[1643772920882,0.1794,2787.2,2786.1,1.79399]
[1643772921083,0.1794,2787.2,2786.2,0.3]
[1643772921284,0.3263797,2787.0,2786.2,0.3]
[1643772921524,0.1794,2786.9,2786.4,1.4351726]
[1643772921725,0.3263797,2787.0,2786.4,1.4351726]
[1643772921726,0.5057797,2787.0,2786.4,2.0351726]
[1643772922325,0.5057797,2787.0,2786.4,3.0351726]
[1643772922525,0.5057797,2787.0,2786.4,2.0351726]
[1643772922725,0.5057797,2787.0,2786.5,1.0]
[1643772922925,0.09903246,2787.0,2786.4,3.0351726]
[1643772923327,1.1871,2787.4,2786.4,3.0351726]
[1643772923328,0.1794,2787.2,2786.5,2.42539964]
[1643772923538,0.89701,2788.2,2786.5,2.42539964]
[1643772923539,0.1794,2787.3,2786.7,0.89689]
[1643772923730,0.01285523,2788.4,2786.9,0.99999999]
[1643772923731,0.1792,2788.4,2786.9,0.99999999]
[1643772924031,0.78152481,2788.0,2787.1,2.69004]
[1643772924227,0.78152481,2788.0,2787.2,1.0]
[1643772924228,0.1792,2787.9,2787.2,1.0]
[1643772924529,0.1792,2787.9,2787.2,1.815]
[1643772924928,0.1792,2787.9,2787.3,1.4346848]
[1643772925181,0.1792,2787.9,2787.4,0.3]
[1643772925573,0.1792,2787.9,2787.4,0.6]
[1643772925975,0.1792,2787.9,2787.4,1.6]
[1643772926777,0.1792,2787.9,2787.4,1.3]
[1643772926977,0.1792,2787.9,2787.5,1.91252302]
[1643772927178,0.43220974,2788.1,2787.5,1.91252302]
[1643772927179,0.1792,2788.0,2787.5,1.91252302]
[1643772927379,0.1792,2788.0,2787.5,2.91252302]
[1643772927783,0.1792,2788.0,2787.4,0.3]
[1643772928186,0.1792,2788.0,2786.8,0.1792]
[1643772928187,0.01279719,2787.7,2786.8,0.1792]
[1643772928389,0.01279719,2787.7,2786.6,1.0]
[1643772928390,0.1792,2787.6,2786.7,1.0]
[1643772928579,0.1792,2787.6,2786.4,0.25]
[1643772929225,0.1792,2787.6,2786.5,2.85262657]
[1643772929423,0.37683049,2787.4,2786.5,2.85262657]
[1643772929621,0.37683049,2787.4,2786.4,0.765]
[1643772929822,0.1794,2787.3,2786.5,0.3]
[1643772930021,0.1794,2787.3,2786.5,2.33109112]
[1643772930226,0.1794,2787.3,2786.5,3.33109112]
[1643772931035,0.1794,2787.7,2786.7,0.5381382]
[1643772931332,5.1103,2788.1,2786.8,2.36583072]
[1643772931333,0.1792,2788.0,2786.8,2.36583072]
[1643772931744,0.1792,2788.0,2786.8,3.36583072]
[1643772931928,0.1792,2788.0,2786.8,2.36583072]
[1643772932128,0.3852215,2787.7,2786.9,1.5380878]
[1643772932327,0.3852215,2787.7,2787.0,1.94511733]
[1643772932328,0.1792,2787.6,2787.0,1.94511733]
[1643772932527,0.69869171,2787.4,2786.9,1.3]
[1643772932774,0.69869171,2787.4,2786.9,0.3]
[1643772933174,0.69869171,2787.4,2786.5,1.4792]
[1643772933375,0.69869171,2787.4,2786.5,1.7792]
[1643772933580,0.69869171,2787.4,2786.5,0.3]
[1643772933774,0.69869171,2787.4,2786.3,0.7794]
[1643772934075,0.69869171,2787.4,2786.3,0.4794]
[1643772934275,0.1794,2787.3,2786.3,0.4794]
[1643772934680,0.38041047,2787.0,2786.3,0.7794]
[1643772935081,0.38041047,2787.0,2786.3,0.4794]
[1643772935280,0.1794,2787.3,2786.3,0.4794]
[1643772935882,0.1794,2787.3,2786.3,0.7794]
[1643772936087,0.1794,2787.3,2786.3,0.4794]
[1643772936285,0.32404553,2786.8,2786.3,0.4794]
[1643772936524,0.32404553,2786.8,2786.3,0.1794]
[1643772937134,0.32404553,2786.8,2785.8,1.25]
[1643772937135,0.1794,2786.7,2785.8,1.25]
[1643772937330,1.00448494,2786.7,2785.7,0.5383492]
[1643772938228,0.1794,2786.7,2785.7,0.5383492]
[1643772938428,0.1794,2786.7,2785.7,0.4883492]
[1643772938633,0.1794,2786.7,2785.8,2.25962264]
[1643772938829,0.1794,2786.7,2785.9,1.97018867]
[1643772939029,0.1794,2787.1,2785.9,1.97018867]
[1643772939228,0.1794,2787.1,2786.0,1.03233375]
[1643772939828,0.3500074,2786.9,2786.0,0.3]
[1643772940028,0.1794,2786.8,2786.0,0.5383036]
[1643772940280,0.1794,2786.8,2786.1,0.3]
[1643772940481,0.35192783,2786.0,2785.6,0.1794]
[1643772940678,0.35192783,2786.0,2785.3,0.1794]
[1643772940679,2.0,2785.9,2785.3,0.1794]
[1643772940878,2.0,2785.9,2785.1,0.25]
[1643772940879,0.1794,2785.9,2785.1,0.25]
[1643772941075,0.1794,2785.9,2784.9,0.1794]
[1643772941076,0.95220881,2785.5,2784.9,0.1794]
[1643772941284,0.96015736,2785.5,2784.9,0.1794]
[1643772941477,0.96038941,2785.5,2784.6,0.1794]
[1643772941675,0.96038941,2785.5,2784.2,0.25]
[1643772941676,0.96038941,2785.5,2784.3,0.1794]
[1643772942784,2.01113716,2785.4,2784.3,0.1794]
[1643772943085,0.1794,2785.4,2784.3,0.1794]
[1643772943278,2.14547895,2785.4,2784.3,0.1794]
[1643772943678,0.1794,2785.4,2784.3,0.1794]
[1643772944117,0.1794,2785.6,2784.3,0.1794]
[1643772944317,0.1794,2785.6,2784.3,1.1794]
[1643772944522,0.1794,2785.6,2784.4,0.5385583]
[1643772944826,0.1794,2785.7,2784.8,1.79473]
[1643772945123,1.1675,2785.8,2784.9,0.815]
[1643772945522,1.1675,2785.8,2784.9,1.815]
[1643772946124,1.1675,2785.8,2785.2,0.538416]
[1643772946324,1.1675,2785.8,2785.2,0.838416]
[1643772946724,1.1675,2785.8,2785.2,0.3]
[1643772947325,1.1675,2785.8,2784.9,2.2944]
[1643772947527,1.93909889,2785.7,2784.9,1.7794]
[1643772947777,2.08961788,2785.7,2784.8,1.3]
[1643772948077,3.01648522,2785.7,2784.8,0.3]
[1643772948277,3.01648522,2785.7,2784.6,0.3]
[1643772948486,1.0685284,2785.7,2784.6,0.3]
[1643772948675,1.0685284,2785.7,2784.5,2.66791453]
[1643772950683,1.0685284,2785.7,2784.5,2.06791453]
[1643772950684,0.8976233,2785.6,2784.5,2.06791453]
[1643772950884,0.1794,2785.5,2784.5,2.66791453]
[1643772951527,0.1794,2785.7,2784.5,2.66791453]
[1643772952126,0.1794,2785.7,2784.5,1.7794]
[1643772952127,0.8832103,2785.7,2784.5,1.7794]
[1643772952327,2.98718872,2785.6,2784.5,1.7794]
[1643772952535,0.1794,2785.5,2784.5,1.7794]
[1643772952726,0.1794,2785.5,2784.5,1.6]
[1643772952926,0.1794,2785.5,2784.5,1.5]
[1643772953129,0.84715564,2785.2,2784.5,0.5]
[1643772953327,1.23163161,2785.2,2784.5,1.0]
[1643772953735,0.84715564,2785.2,2784.4,2.09495]
[1643772953929,0.84715564,2785.2,2784.3,0.1794]
[1643772954336,1.91194029,2785.1,2784.2,0.1794]
[1643772954530,1.91194029,2785.1,2784.1,0.1794]
[1643772954731,0.1794,2785.1,2784.1,0.1794]
[1643772956383,0.4462352,2784.9,2784.1,0.1794]
[1643772956989,0.1794,2785.1,2784.1,0.1794]
[1643772957384,0.1794,2785.1,2783.8,0.4794]
[1643772957987,0.56463285,2785.1,2783.8,0.4794]
[1643772958287,0.99660027,2785.1,2783.9,0.90104653]
[1643772958486,0.99660027,2785.1,2783.9,2.25647672]
[1643772958487,0.1794,2785.1,2783.9,2.25647672]
[1643772958687,0.1794,2785.1,2784.0,0.6944]
[1643772958927,1.1621,2785.4,2784.1,23.8953886]
[1643772958928,0.1794,2785.3,2784.1,23.8953886]
[1643772959224,0.1794,2785.3,2784.2,1.6944]
[1643772959423,1.1621,2785.4,2784.3,2.59169884]
[1643772959631,1.1621,2785.4,2784.7,0.75342968]
[1643772959922,1.1621,2785.4,2784.8,2.11261261]
[1643772960330,1.1621,2785.4,2784.7,0.515]
[1643772960525,1.1621,2785.4,2784.8,1.94359756]
[1643772961129,1.1621,2785.4,2784.7,0.515]
[1643772964181,1.1621,2785.4,2784.7,0.815]
[1643772964791,1.1621,2785.4,2784.7,0.515]
[1643772965183,1.1621,2785.4,2784.7,0.815]
[1643772965788,1.1621,2785.4,2784.7,0.515]
[1643772968328,1.1621,2785.4,2784.7,0.815]
[1643772968727,1.1621,2785.4,2784.7,1.115]
[1643772969129,0.1794,2785.6,2784.7,1.115]
[1643772969330,0.1794,2785.9,2785.0,0.68025765]
[1643772969532,0.1794,2785.9,2785.1,0.515]
[1643772970178,0.1794,2785.9,2785.1,0.815]
[1643772976642,0.1794,2785.9,2785.1,0.515]
[1643772976843,0.41380108,2785.7,2785.1,0.515]
[1643772977243,0.41380108,2785.7,2784.8,1.4794]
[1643772978784,0.59320108,2785.7,2784.8,1.4794]
[1643772978986,0.76672173,2785.6,2784.8,1.4794]
[1643772979185,0.76672173,2785.6,2784.8,1.3]
[1643772979383,0.76672173,2785.6,2784.8,1.0]
[1643772980390,0.1794,2785.5,2784.8,1.0]
[1643772981287,0.1794,2785.5,2784.8,1.3]
[1643772981527,0.1794,2785.6,2784.8,1.3]
[1643772981730,0.1794,2785.6,2784.8,1.0]
[1643772981930,0.17793403,2785.6,2784.8,1.3]
[1643772982132,0.17793403,2785.6,2784.8,1.0]
[1643772982333,0.85637654,2785.6,2784.8,1.3]
[1643772982534,0.85637654,2785.6,2784.8,1.0]
[1643772982732,0.85637654,2785.6,2784.8,1.3]
[1643772985686,0.85637654,2785.6,2784.8,1.0]
[1643772985882,0.17793403,2785.6,2784.8,1.0]
[1643772986284,0.1794,2785.7,2784.8,1.0]
[1643772986685,2.10096862,2785.7,2784.8,1.0]
[1643772986886,4.0527338,2785.6,2784.5,1.1794]
[1643772987084,4.0527338,2785.6,2784.4,0.78307649]
[1643772987085,0.35868658,2785.4,2784.4,0.78307649]
[1643772987285,2.10280663,2785.3,2784.4,1.08307649]
[1643772987487,0.1794,2785.3,2784.4,1.26247649]
[1643772988287,0.1794,2785.3,2784.4,1.56247649]
[1643772988487,0.1794,2785.3,2784.4,1.26247649]
[1643772988689,1.2328,2785.4,2784.4,1.26247649]
[1643772989342,1.95988816,2785.4,2784.4,1.26247649]
[1643772989950,1.2328,2785.4,2784.4,1.56247649]
[1643772990147,1.2328,2785.4,2784.4,1.26247649]
[1643772990347,1.2328,2785.4,2784.4,1.56247649]
[1643772990752,1.2328,2785.4,2784.4,1.26247649]
[1643772991653,1.2328,2785.4,2784.5,0.89752]
[1643772992789,1.2328,2785.4,2784.5,1.19752]
[1643772992991,1.2328,2785.4,2784.5,0.89752]
[1643772997541,1.2328,2785.4,2784.4,1.26247649]
[1643772997937,3.18329884,2785.4,2784.4,1.26247649]
[1643772998138,1.2328,2785.4,2784.4,1.26247649]
[1643772998939,0.1794,2785.3,2784.4,1.08307649]
[1643773000041,0.1794,2785.3,2784.4,0.3]
[1643773000295,3.0135734,2785.3,2784.3,1.1794]
[1643773000891,1.0770715,2785.3,2784.3,1.1794]
[1643773001096,3.0128721,2785.3,2784.3,1.1794]
[1643773001294,1.5175352,2785.2,2784.3,1.1794]
[1643773001493,0.84825744,2785.1,2784.3,1.1794]
[1643773001794,1.02765744,2785.1,2784.3,1.0]
[1643773002195,1.02765744,2785.1,2784.3,1.3]
[1643773003602,0.1794,2785.1,2784.3,1.3]
[1643773007878,0.1794,2785.1,2784.3,1.0]
[1643773011535,0.1794,2785.2,2784.3,1.0]
[1643773013338,0.1794,2785.2,2784.1,0.89769]
[1643773013538,0.19495169,2785.2,2784.1,0.89769]
[1643773013942,0.19495169,2785.2,2784.0,0.4294]
[1643773014145,0.19495169,2785.2,2784.0,0.1794]
[1643773014146,0.38678949,2784.7,2784.0,0.1794]
[1643773014340,0.38678949,2784.7,2783.7,1.12048]
[1643773014341,0.94117787,2784.5,2783.7,1.12048]
[1643773014538,0.00917312,2784.4,2783.7,1.12048]
[1643773015182,0.90713612,2784.4,2783.7,1.12048]
[1643773015588,0.897963,2784.4,2783.7,1.12048]
[1643773015788,1.077363,2784.4,2783.7,1.12048]
[1643773016588,0.1794,2784.5,2783.7,1.12048]
[1643773017991,0.8979552,2784.4,2783.7,1.12048]
[1643773019529,0.1794,2784.5,2783.7,1.42048]
[1643773019730,1.1478,2784.6,2783.8,0.515]
[1643773020131,1.1478,2784.6,2783.9,0.1794]
[1643773021941,1.143436,2784.6,2783.9,0.1794]
[1643773022537,1.143436,2784.6,2783.8,2.79543]
[1643773028339,2.0413127,2784.6,2783.8,2.79543]
[1643773029334,2.0413127,2784.6,2783.8,1.0]
[1643773029840,2.0413127,2784.6,2783.7,2.91613128]
[1643773030891,2.0413127,2784.6,2783.7,5.72727428]
[1643773031094,2.0413127,2784.6,2783.7,4.931623]
[1643773031493,2.0413127,2784.6,2783.7,3.01835]
[1643773031895,2.0413127,2784.6,2783.7,2.01835]
[1643773032095,0.1794,2784.5,2783.8,1.0]
[1643773032498,0.8979366,2784.4,2783.8,1.0]
[1643773032700,0.8979366,2784.4,2783.7,1.12048]
[1643773032701,0.1794,2784.3,2783.7,1.12048]
[1643773041190,0.1794,2784.3,2783.7,1.02048]
[1643773045391,0.1794,2784.3,2783.2,0.25]
[1643773045392,6.5,2784.0,2783.2,0.25]
[1643773045590,6.5,2784.0,2782.6,0.00209879]
[1643773045591,0.8982404,2783.8,2782.6,0.1796]
[1643773045789,2.19447058,2783.9,2782.6,0.1796]
[1643773045790,2.19294015,2783.7,2782.6,0.1796]
[1643773045988,0.31334015,2783.7,2782.6,0.1796]
[1643773046187,2.1796,2783.6,2782.6,0.1796]
[1643773046387,1.80332043,2783.2,2782.6,0.1796]
[1643773046591,1.80332043,2783.2,2782.3,3.9666]
[1643773046592,6.5,2783.1,2782.3,0.25]
[1643773046795,6.5,2783.1,2782.3,0.15]
[1643773046796,0.0288098,2782.8,2782.3,0.15]
[1643773046991,0.0288098,2782.8,2781.5,0.1796]
[1643773047188,0.1797,2782.7,2781.5,0.1796]
[1643773047388,0.1797,2782.7,2781.5,0.89853]
[1643773047592,0.94149061,2782.6,2781.5,0.89853]
[1643773047798,0.8985528,2782.5,2781.5,0.89853]
[1643773047992,0.00668208,2782.4,2781.5,0.89853]
[1643773048190,0.8985528,2782.5,2781.5,0.89853]
[1643773048396,0.8985528,2782.5,2781.5,1.49853]
[1643773048936,0.8985528,2782.5,2781.5,1.67823]
[1643773049137,1.75879721,2782.5,2781.5,0.7797]
[1643773049338,1.75879721,2782.5,2781.5,1.67821]
[1643773049539,0.86024441,2782.5,2781.5,1.37821]
[1643773049737,0.86024441,2782.5,2781.5,1.49851]
[1643773049937,1.0781694,2782.7,2781.5,1.49851]
[1643773050145,0.1797,2783.0,2781.6,1.97648]
[1643773050345,3.1285,2783.1,2781.7,0.515]
[1643773050346,3.3082,2783.1,2781.7,0.515]
[1643773050539,3.3082,2783.1,2781.8,0.1797]
[1643773050740,4.2065875,2783.1,2782.1,0.89838]
[1643773050943,0.67019985,2782.8,2782.1,0.3]
[1643773051340,0.67019985,2782.8,2782.0,1.0]
[1643773052540,0.1797,2783.0,2782.0,1.0]
[1643773053387,0.8984758,2782.8,2782.0,1.0]
[1643773053584,2.09066919,2782.7,2782.0,1.0]
[1643773053784,1.04719804,2782.7,2782.0,0.95]
[1643773055090,0.1797,2782.7,2782.0,0.95]
[1643773055690,0.1797,2783.0,2782.0,0.95]
[1643773056095,2.11770695,2783.0,2782.0,0.95]
[1643773056295,0.77164261,2782.7,2782.0,0.95]
[1643773056540,0.1797,2783.0,2782.0,1.25]
[1643773056947,0.1797,2783.0,2782.1,0.89836]
[1643773057149,0.1797,2783.0,2782.1,1.19836]
[1643773057546,0.1797,2783.0,2782.1,0.89836]
[1643773057946,0.1797,2783.0,2782.1,1.19836]
[1643773058152,0.1797,2783.0,2782.1,0.89836]
[1643773058745,0.1797,2783.0,2782.1,1.19836]
[1643773059145,0.1797,2783.0,2782.0,1.25]
[1643773059347,0.89846,2782.8,2782.0,1.25]
[1643773060391,1.93186107,2782.7,2782.0,0.95]
[1643773060597,0.8985646,2782.6,2782.0,0.95]
[1643773061690,2.81052976,2782.6,2782.0,0.95]
[1643773061890,0.8985646,2782.6,2782.0,0.95]
[1643773062290,2.82094865,2782.6,2782.0,1.25]
[1643773062492,2.88172826,2782.6,2782.0,1.25]
[1643773063298,0.8985646,2782.6,2782.0,1.25]
[1643773063492,2.82778834,2782.6,2782.0,1.25]
[1643773063791,1.0782646,2782.6,2782.0,0.95]
[1643773065247,3.02210867,2782.6,2782.0,0.95]
[1643773065448,1.0782646,2782.6,2782.0,0.95]
[1643773065746,2.98505705,2782.6,2782.0,0.95]
[1643773066052,2.98638184,2782.6,2782.0,0.95]
[1643773066248,1.0782646,2782.6,2782.0,0.95]
[1643773066446,1.0782646,2782.6,2781.9,3.2003]
[1643773066647,1.0782646,2782.6,2781.6,2.79684]
[1643773067247,3.00020552,2782.6,2781.6,2.79684]
[1643773067447,1.0782646,2782.6,2781.6,2.79684]
[1643773068084,3.01388526,2782.6,2781.6,2.79684]
[1643773068286,1.0782646,2782.6,2781.6,2.79684]
[1643773068486,3.01046798,2782.6,2781.6,2.79684]
[1643773068691,0.1797,2782.6,2781.6,2.79684]
[1643773069085,1.3272,2782.7,2781.6,4.29531]
[1643773069285,1.3272,2782.7,2781.8,0.89847]
[1643773069685,1.3272,2782.7,2781.8,1.19847]
[1643773070085,2.16741018,2782.7,2781.8,1.19847]
[1643773071292,1.3272,2782.7,2781.8,1.49847]
[1643773071531,1.3272,2782.7,2782.0,0.89838]
[1643773071731,1.1475,2782.7,2782.0,1.49838]
[1643773071936,1.1475,2782.7,2782.0,0.89838]
[1643773072134,2.0,2782.6,2782.0,0.89838]
[1643773072337,3.29729261,2782.6,2781.7,1.1797]
[1643773072534,1.47699261,2782.6,2781.5,1.07831]
[1643773072737,3.47699261,2782.6,2781.6,1.0]
[1643773072937,3.47699261,2782.6,2781.5,2.07831]
[1643773073139,3.47699261,2782.6,2781.5,1.89861]
[1643773074139,4.37554731,2782.6,2781.5,1.89861]
[1643773074539,4.37554731,2782.6,2781.5,1.84861]
[1643773075192,0.8985952,2782.4,2781.5,1.84861]
[1643773075398,1.1291,2782.3,2781.5,1.84861]
[1643773075803,1.1291,2782.3,2781.5,2.14861]
[1643773075999,0.1797,2782.6,2781.5,2.44861]
[1643773076200,1.3088,2782.7,2781.7,0.8985]
[1643773076605,1.3088,2782.7,2781.7,1.4985]
[1643773076803,1.3088,2782.7,2781.7,2.4985]
[1643773077007,1.3088,2782.7,2781.7,1.0]
[1643773077008,3.7972423,2782.6,2781.7,1.0]
[1643773077201,3.7972423,2782.6,2781.5,1.3]
[1643773077202,0.90267566,2782.4,2781.5,1.3]
[1643773077400,0.90267566,2782.4,2781.5,1.6]
[1643773077401,0.8986552,2782.2,2781.5,1.6]
[1643773077804,2.0940552,2782.2,2781.5,1.6]
[1643773078001,2.0940552,2782.2,2781.5,1.0]
[1643773078800,0.1797,2782.1,2781.5,1.0]
[1643773079037,0.1797,2782.1,2781.4,3.0413]
[1643773079243,0.8987127,2782.0,2781.4,3.0413]
[1643773079439,0.8987127,2782.0,2781.2,0.02]
[1643773080643,1.7974451,2782.3,2781.3,1.36361]
[1643773080644,0.1797,2782.3,2781.3,1.36361]
[1643773080843,0.1797,2782.3,2781.4,2.09705]
[1643773081044,0.1797,2782.6,2781.5,0.515]
[1643773081349,0.93321389,2782.6,2781.5,0.515]
[1643773081544,0.93321389,2782.6,2781.5,1.815]
[1643773082148,0.1797,2782.6,2781.6,0.89853]
[1643773082348,0.1797,2782.6,2781.7,0.515]
[1643773082548,0.1797,2782.6,2781.8,1.96661608]
[1643773083789,0.1797,2782.6,2781.8,0.89849]
[1643773084092,1.0782343,2782.6,2781.3,1.79713]
[1643773084295,0.1797,2782.6,2781.4,2.0]
[1643773084491,0.1797,2782.6,2781.5,2.0]
[1643773084690,0.1797,2782.6,2781.8,0.8985]
[1643773084889,0.1797,2782.6,2781.4,2.1797]
[1643773085089,0.1797,2782.6,2781.4,2.7797]
[1643773085291,0.1797,2782.6,2781.4,3.7797]
[1643773085487,0.1797,2782.6,2781.4,4.2947]
[1643773085890,0.1797,2782.6,2781.4,5.19322]
[1643773086190,1.0782371,2782.6,2781.6,0.89855]
[1643773086640,1.0782371,2782.6,2781.7,2.07669674]
[1643773086845,1.0782371,2782.6,2781.7,3.07669674]
[1643773087042,0.1797,2782.6,2781.7,3.07669674]
[1643773087249,0.41938493,2782.3,2781.4,0.1797]
[1643773087447,3.3815,2782.2,2781.2,0.02]
[1643773087644,3.38835376,2782.2,2780.7,0.02]
[1643773088041,3.38835376,2782.2,2780.8,0.04035807]
[1643773088242,3.3815,2782.2,2780.8,0.04035807]
[1643773088442,0.75431842,2781.7,2781.3,0.02]
[1643773088649,0.1797,2781.6,2781.3,0.02]
[1643773089046,1.3091,2781.6,2781.3,0.02]
[1643773089447,0.8988696,2781.5,2781.3,0.02]
[1643773089643,0.8988696,2781.5,2780.8,0.04035807]
[1643773089844,1.0785696,2781.5,2780.8,0.04035807]
[1643773090046,1.0785696,2781.5,2780.8,0.06035807]
[1643773090500,3.00799902,2781.5,2780.8,0.06035807]
[1643773090697,1.0785696,2781.5,2780.8,0.06035807]
[1643773091101,1.0785696,2781.5,2780.8,0.04035807]
[1643773091303,3.01796353,2781.5,2780.8,0.04035807]
[1643773091504,1.0785696,2781.5,2780.8,0.04035807]
[1643773091705,3.06031008,2781.5,2780.8,0.04035807]
[1643773092306,1.0785696,2781.5,2780.7,0.04092649]
[1643773092710,1.0785696,2781.5,2780.5,0.04206334]
[1643773092711,2.99427053,2781.5,2780.5,0.04206334]
[1643773092909,0.8989403,2781.2,2780.5,0.04206334]
[1643773093108,0.8989403,2781.2,2780.4,1.19176334]
[1643773093309,0.8989403,2781.2,2780.5,0.02]
[1643773094643,0.8989403,2781.2,2780.5,0.32]
[1643773095744,0.8989403,2781.2,2780.5,0.02]
[1643773097999,0.8989403,2781.2,2780.4,0.97]
[1643773098403,1.96671826,2781.1,2780.4,0.97]
[1643773098599,2.1014403,2781.2,2780.4,0.97]
[1643773098799,2.02191077,2781.1,2780.4,0.97]
[1643773099207,2.92093257,2781.1,2780.4,0.97]
[1643773099605,2.92093257,2781.1,2780.3,1.12048]
[1643773099811,0.1797,2781.0,2780.3,1.12048]
[1643773102560,1.0787218,2781.1,2780.3,1.12048]
[1643773102759,1.0787218,2781.1,2780.3,1.07048]
[1643773104170,0.1797,2781.1,2780.3,1.07048]
[1643773108601,2.10370531,2780.9,2780.3,1.07048]
[1643773108946,1.7208589,2780.9,2780.3,1.07048]
[1643773109353,0.1797,2780.8,2780.3,1.07048]
[1643773110154,1.2025,2781.2,2780.3,1.07048]
[1643773110155,1.0787153,2781.1,2780.3,1.07048]
[1643773110751,1.0787153,2781.1,2780.3,1.37048]
[1643773111550,1.92835365,2781.0,2780.3,1.37048]
[1643773111753,0.1797,2780.9,2780.3,1.37048]
[1643773112356,2.1797,2781.0,2780.3,1.37048]
[1643773112797,0.1797,2781.0,2780.3,1.37048]
[1643773114694,2.10063457,2781.0,2780.3,1.37048]
[1643773115302,0.1797,2781.0,2780.3,1.37048]
[1643773120695,0.1797,2781.0,2780.3,1.36098]
[1643773124841,0.1797,2781.0,2780.3,1.07048]
[1643773127252,1.2025,2781.2,2780.4,2.0]
[1643773127446,0.1797,2781.3,2780.4,2.0]
[1643773127688,0.1797,2781.5,2780.5,0.515]
[1643773128087,0.1797,2781.5,2780.5,1.515]
[1643773128291,0.1797,2781.5,2780.5,0.515]
[1643773128508,0.1797,2781.5,2780.5,1.515]
[1643773128893,0.1797,2781.5,2780.5,0.515]
[1643773129093,2.41833545,2781.4,2780.4,1.89897]
[1643773129296,1.9776741,2781.3,2780.4,1.89897]
[1643773129796,1.9776741,2781.3,2780.3,2.37048]
[1643773129995,1.1877,2781.2,2780.3,1.37048]
[1643773130195,2.0866871,2781.2,2780.4,0.89897]
[1643773130596,2.0866871,2781.2,2780.4,1.89897]
[1643773130802,2.0866871,2781.2,2780.4,0.89897]
[1643773130997,2.0866871,2781.2,2780.4,1.89897]
[1643773131198,2.0866871,2781.2,2780.4,1.0]
[1643773131437,0.1797,2781.1,2780.4,1.0]
[1643773131636,0.1797,2781.1,2780.3,1.37048]
[1643773133439,0.1797,2781.1,2780.4,0.89895]
[1643773133836,0.1797,2781.1,2780.4,1.89895]
[1643773134441,0.1797,2781.1,2780.4,1.0]
[1643773134442,1.51956201,2781.0,2780.4,1.0]
[1643773134641,2.31283422,2780.9,2780.4,1.0]
[1643773134839,1.12952,2780.0,2779.9,2.098]
[1643773135297,1.12952,2780.0,2779.9,2.398]
[1643773146846,1.12952,2780.0,2779.9,2.098]
[1643773148745,1.12952,2780.0,2779.9,23.168]
[1643773149054,1.12952,2780.0,2779.9,23.683]
[1643773149246,1.12952,2780.0,2779.9,2.613]
[1643773149745,1.12952,2780.0,2779.9,23.683]
[1643773150492,0.99245231,2780.0,2779.9,23.683]
[1643773150698,0.13706769,2780.0,2779.9,23.683]
[1643773150896,0.13706769,2780.0,2779.9,23.983]
[1643773151191,0.1797,2780.9,2780.3,1.79772]
[1643773151394,0.1797,2781.1,2780.5,0.74948012]
[1643773151604,0.1797,2781.1,2780.5,1.26448012]
[1643773151995,0.1797,2781.1,2780.5,0.515]
[1643773152600,1.5194251,2781.0,2780.5,0.515]
[1643773152999,1.5194251,2781.0,2780.6,0.69840333]
[1643773153200,0.1797,2781.1,2780.6,1.59725333]
[1643773153397,1.1488,2781.2,2780.7,1.92900302]
[1643773153598,1.1488,2781.2,2780.7,0.3]
[1643773153799,1.1488,2781.2,2780.6,0.69840333]
[1643773153800,1.51934027,2781.1,2780.6,0.3]
[1643773154448,0.1797,2781.3,2780.7,1.92729306]
[1643773154649,0.1797,2781.5,2780.8,0.89882]
[1643773154846,1.51922104,2781.4,2780.9,2.45070347]
[1643773155251,0.1797,2781.8,2780.9,0.515]
[1643773155453,1.51919226,2781.7,2780.9,0.515]
[1643773155651,0.1797,2781.6,2780.9,0.515]
[1643773156152,1.51919226,2781.5,2781.0,0.89875]
[1643773156356,0.1797,2781.7,2781.1,1.91075972]
[1643773156559,0.1797,2782.2,2781.3,21.07]
[1643773156761,1.51894181,2782.1,2781.5,0.3]
[1643773156956,1.51894181,2782.0,2781.6,0.515]
[1643773157154,0.1797,2782.5,2781.6,0.515]
[1643773157155,1.51894181,2781.9,2781.7,0.89839]
[1643773157357,1.51894181,2781.8,2781.7,1.41339]
[1643773157555,0.1797,2782.5,2781.7,1.41339]
[1643773157994,1.5188938,2782.4,2781.7,1.41339]
[1643773158392,1.5188938,2782.4,2781.7,22.48339]
[1643773158993,1.5188938,2782.4,2781.7,23.38185]
[1643773159301,0.33791322,2782.1,2781.8,1.79686]
[1643773159493,0.33791322,2782.1,2781.4,0.515]
[1643773159494,1.5188938,2782.0,2781.4,0.515]
[1643773159690,1.5188938,2782.0,2780.8,0.25]
[1643773159691,1.5188938,2782.0,2781.0,0.6947]
[1643773159891,1.167,2781.9,2781.0,0.515]
[1643773160092,1.5188938,2781.8,2781.0,0.515]
[1643773161193,1.5188938,2781.8,2781.0,2.31239]
[1643773161194,0.8987591,2781.7,2781.0,2.31239]
[1643773161446,0.8987591,2781.7,2781.0,2.61239]
[1643773161447,1.5188938,2781.6,2781.0,2.61239]
[1643773163356,0.8987869,2781.5,2781.0,0.515]
[1643773163552,0.8987869,2781.5,2780.8,3.34751]
[1643773163852,0.8987869,2781.5,2780.8,3.09751]
[1643773165404,0.8987869,2781.5,2781.0,0.89878]
[1643773171346,1.51928159,2781.4,2781.0,0.89878]
[1643773171545,0.898741,2781.7,2781.0,0.89878]
[1643773171746,1.51925013,2781.6,2781.0,1.19878]
[1643773171945,1.51925013,2781.6,2781.0,0.89878]